[Event "1st Sales Oliveira Masters 2022"]
[Site "Sales Oliveira"]
[Date "2022.06.11"]
[Round "6.1"]
[White "Fier, Alexandr"]
[Black "Labussiere, Victor"]
[Result "1-0"]
[ECO "A14"]
[WhiteElo "2567"]
[BlackElo "2349"]
[Annotator "TA"]
[PlyCount "77"]
[EventDate "2022.05.30"]
[EventType "swiss"]
[EventCountry "BRA"]
[SourceTitle "playchess.com"]
[Source "ChessBase"]
[SourceQuality "1"]
[TimeControl "40/5400+30:1800+30"]

{[%evp 23,77,16,75,75,161,154,155,164,160,161,168,60,117,116,120,115,114,126,124,60,152,150,350,329,348,343,370,365,572,564,559,557,808,808,808,808,804,804,974,829,829,829,829,804,812,288,1068,1068,1068,1061,1061,1057,1061,967,1461,1415]} 1. c4 {[%emt 0:00:02]} e6 {[%emt 0:02:50]} 2. Nf3 {[%emt 0:00:40]} d5 {[%emt 0:00:54]} 3. b3 {[%emt 0:00:10]} Nf6 {[%emt 0:03:14]} 4. g3 {[%emt 0:00:05]} Be7 {[%emt 0:00:50]} 5. Bg2 {[%emt 0:00:06]} O-O {[%emt 0:03:27]} 6. O-O {[%emt 0:00:10]} b6 {[%emt 0:00:12]} 7. Bb2 {[%emt 0:00:14]} Bb7 {[%emt 0:00:11]} 8. e3 {[%emt 0:00:06]} c5 {[%emt 0:00:11]} 9. Nc3 {[%emt 0:00:05]} Nc6 {[%emt 0:02:12]} 10. cxd5 {[%emt 0:00:35]} Nxd5 {[%emt 0:04:46]} 11. Nxd5 {[%emt 0:00:05]} Qxd5 {[%emt 0:03:48] 11...Qxd5 scores better than 11...exd5.} 12. d4 {[%emt 0:00:16]} Rfd8 {[%emt 0:10:40]} (12... Qf5 $11 {remains equal.}) 13. Ne5 $16 {[%emt 0:03:00] A14: English Opening: 1...e6 with b3 by White.} Qxg2+ {[%emt 0:27:57]} (13... Qd6 $142) 14. Kxg2 {[%emt 0:00:16]} Nxe5+ {[%emt 0:00:08]} 15. f3 {[%emt 0:00:05] White is clearly better.} cxd4 {[%emt 0:00:07]} 16. exd4 {[%emt 0:00:04]} Nc6 {[%emt 0:03:28] [#]} 17. d5 $146 {[%emt 0:01:32]} (17. Qe2 $18) ({Predecessor:} 17. Rf2 Bf6 18. Rd2 Rd5 19. Qe2 Rad8 20. Rad1 h5 21. h4 g6 22. a3 Rf5 23. Rd3 Ba6 24. d5 Rfxd5 25. Bxf6 Bxd3 26. Qe3 {1-0 (26) Harika,D (2515)-Korsunsky,Y (2395) Chess.com INT 2021}) 17... exd5 {[%emt 0:05:39]} (17... Rxd5 $14 18. Qe1 Rad8) 18. Re1 {[%emt 0:02:52]} Bc5 {[%emt 0:00:33]} 19. a3 {[%emt 0:00:57] Black must now prevent b4.} a5 {[%emt 0:00:43] Against b4} 20. Qd3 {[%emt 0:09:12]} d4 {[%emt 0:01:35]} 21. Bc1 {[%emt 0:00:13]} (21. Re4 $16) 21... Re8 {[%emt 0:05:10]} ({Better is} 21... Rd5 $1 $14) 22. Bf4 {[%emt 0:02:49]} Re7 $2 {[%emt 0:04:33] This move loses the game for Black.} (22... Red8 $16 {keeps fighting.} 23. Bd2 h6) 23. Rxe7 $18 {[%emt 0:05:45]} Nxe7 {[%emt 0:00:10]} 24. Bd2 {[%emt 0:00:02]} Nd5 {[%emt 0:05:06]} 25. Qb5 {[%emt 0:00:48] [#] Qd7 is the strong threat.} Ne3+ {[%emt 0:10:19]} (25... Rd8 $142 26. b4 axb4) 26. Bxe3 {[%emt 0:00:05]} dxe3 {[%emt 0:00:03]} 27. Qd7 {[%emt 0:00:04]} Bc8 {[%emt 0:00:57]} 28. Qc6 {[%emt 0:09:13]} Rb8 {[%emt 0:00:14]} 29. Qc7 {[%emt 0:00:04]} Ra8 {[%emt 0:00:13]} 30. Rd1 {[%emt 0:00:12] [#] Intending Rd8+ and mate.} h6 {[%emt 0:03:59]} 31. Qc6 {[%emt 0:01:51]} e2 {[%emt 0:01:05]} 32. Re1 {[%emt 0:03:32]} Rb8 {[%emt 0:00:13]} 33. Qe8+ {[%emt 0:00:38]} Bf8 {[%emt 0:00:26]} 34. Rxe2 $2 {[%emt 0:00:18]} (34. Kf2) 34... Ra8 $2 {[%emt 0:01:06]} (34... Bh3+ 35. Kxh3 Rxe8 36. Rxe8 g6) 35. Qc6 {[%emt 0:01:07][%csl LRa8,LRb6] White is clearly winning.} Ba6 {[%emt 0:00:29]} 36. Rd2 {[%emt 0:01:14]} Rb8 {[%emt 0:00:28]} 37. Qc7 {[%emt 0:01:28]} Ra8 {[%emt 0:00:33]} 38. Qxb6 {[%emt 0:00:12]} a4 {[%emt 0:00:29]} 39. bxa4 {[%emt 0:00:19] Weighted Error Value: White=0.42/Black=0.64} 1-0

[Event "1st Sales Oliveira Masters 2022"]
[Site "Sales Oliveira"]
[Date "2022.06.11"]
[Round "6.2"]
[White "Delgado Ramirez, Neuris"]
[Black "Coro, Lucas"]
[Result "1-0"]
[ECO "B31"]
[WhiteElo "2603"]
[BlackElo "2398"]
[Annotator "TA"]
[PlyCount "71"]
[EventDate "2022.05.30"]
[EventType "swiss"]
[EventCountry "BRA"]
[SourceTitle "playchess.com"]
[Source "ChessBase"]
[SourceQuality "1"]
[TimeControl "40/5400+30:1800+30"]

{[%evp 9,71,-1,-6,-6,0,-2,-8,-13,-1,-3,-4,-16,-19,-17,-8,-12,0,0,0,0,0,0,0,-21,0,0,0,0,0,-10,0,0,46,39,45,53,208,201,244,239,253,220,215,214,212,207,218,225,210,208,210,167,227,223,219,221,224,224,320,320,320,320,295,272]} 1. e4 {[%emt 0:00:10]} c5 {[%emt 0:00:07]} 2. Nf3 {[%emt 0:00:04]} Nc6 {[%emt 0:00:07]} 3. Bb5 {[%emt 0:00:13]} g6 {[%emt 0:00:10]} 4. c3 {[%emt 0:00:09]} Nf6 {[%emt 0:00:32]} 5. e5 {[%emt 0:00:07]} Nd5 $1 {[%emt 0:00:15]} 6. d4 {[%emt 0:00:06] B31: Sicilian: 2...Nc6 3 Bb5 g6.} cxd4 {[%emt 0:01:51]} 7. Qb3 {[%emt 0:01:25]} Nc7 {[%emt 0:00:14]} 8. Bc4 {[%emt 0:00:05][%csl Gb3][%cal Rc4f7] [#] The position is equal.} (8. Nxd4 Nxe5 9. Be2 Bg7 $17) 8... Ne6 {[%emt 0:00:36]} 9. cxd4 {[%emt 0:00:15]} Na5 {[%emt 0:00:21]} 10. Qc3 {[%emt 0:00:21]} Nxc4 {[%emt 0:00:59]} 11. Qxc4 {[%emt 0:01:01]} Qc7 {[%emt 0:02:36]} 12. Qc3 {[%emt 0:00:31]} b6 {[%emt 0:07:02]} 13. d5 {[%emt 0:05:27]} Qxc3+ $1 {[%emt 0:00:14]} 14. Nxc3 {[%emt 0:00:04]} (14. bxc3 Nc5 15. Be3 Nd3+ 16. Kd2 Ba6 $17) 14... Nc7 {[%emt 0:00:47] [#]} 15. Bg5 $146 {[%emt 0:07:36]} ({Predecessor:} 15. Bf4 Bg7 16. O-O Bb7 17. Rfd1 Rc8 18. Rac1 O-O 19. Bg3 Nxd5 20. Nxd5 Bxd5 21. h3 {0-1 (29) Margaritis,F (2119)-Perunovic,M (2557) Korinthos 2004}) 15... Ba6 {[%emt 0:19:08]} 16. O-O-O {[%emt 0:11:08]} (16. d6 $5 {[%cal Rd6c7]} Ne6 17. dxe7 Bxe7 18. Bf6 (18. Bxe7 Kxe7 19. Nd5+ Kf8 $11) 18... Bxf6 19. exf6 $11) 16... Rc8 {[%emt 0:00:26]} 17. Kb1 {[%emt 0:00:54]} h6 {[%emt 0:01:09]} 18. Bh4 {[%emt 0:04:18]} g5 {[%emt 0:11:07]} 19. Bg3 {[%emt 0:01:47]} Nb5 {[%emt 0:00:14]} 20. Ne4 {[%emt 0:00:34]} Bg7 {[%emt 0:13:02]} (20... Rc4 $11 {should be considered.} 21. Rhe1 Bb7) 21. a4 $14 {[%emt 0:03:48]} Nc7 {[%emt 0:00:08]} 22. Nd4 {[%emt 0:00:58]} O-O $2 {[%emt 0:01:18] [#] Loses the game.} (22... Nxd5 $2 23. Nf5 $18) (22... Bb7 $14) 23. Nf5 $18 {[%emt 0:00:17]} Rfe8 {[%emt 0:00:22]} 24. d6 {[%emt 0:01:08]} Bb7 {[%emt 0:00:14]} 25. f3 {[%emt 0:04:06]} Nd5 {[%emt 0:03:29]} 26. dxe7 {[%emt 0:00:32]} Nxe7 {[%emt 0:00:11]} 27. Nfd6 {[%emt 0:01:24] Pair of Knights!} ({And not} 27. Rxd7 Bxe4+ 28. fxe4 Nxf5 29. exf5 Bxe5 $14) 27... Bc6 {[%emt 0:00:07]} 28. Nxe8 {[%emt 0:03:10]} Rxe8 {[%emt 0:00:23]} 29. Nd6 {[%emt 0:04:40] Against Nf5} Rf8 {[%emt 0:00:07]} 30. h4 {[%emt 0:00:10]} f6 {[%emt 0:03:19]} (30... g4 $142) 31. exf6 {[%emt 0:00:34]} Bxf6 {[%emt 0:00:20]} 32. hxg5 {[%emt 0:00:24]} hxg5 {[%emt 0:00:18]} 33. Ne4 {[%emt 0:03:53] Black must now prevent Bd6.} Bg7 {[%emt 0:00:26]} (33... Nf5 {keeps fighting.}) 34. Bd6 {[%emt 0:01:28] White has a decisive advantage.} ({Don't do} 34. Nxg5 $6 Rf5 $18) 34... Re8 {[%emt 0:00:08]} 35. Rde1 {[%emt 0:02:44]} ({Don't take} 35. Nxg5 $6 Nf5 36. Bf4 Bxa4 $18) 35... Nd5 {[%emt 0:05:41]} 36. Nxg5 {[%emt 0:00:33] Weighted Error Value: White=0.04 (flawless) /Black=0.21 (precise)} 1-0

[Event "1st Sales Oliveira Masters 2022"]
[Site "Sales Oliveira"]
[Date "2022.06.11"]
[Round "6.3"]
[White "Gemy, Jose Daniel"]
[Black "Supi, Luis Paulo"]
[Result "0-1"]
[ECO "B50"]
[WhiteElo "2367"]
[BlackElo "2590"]
[Annotator "TA"]
[PlyCount "82"]
[EventDate "2022.05.30"]
[EventType "swiss"]
[EventCountry "BRA"]
[SourceTitle "playchess.com"]
[Source "ChessBase"]
[SourceQuality "1"]
[TimeControl "40/5400+30:1800+30"]

{[%evp 20,82,0,6,15,-3,0,0,0,0,-7,0,0,-10,-10,-10,-10,-15,-14,-25,-25,-25,-18,-20,-16,-16,-5,-11,-15,-16,-14,-15,-16,-24,-16,-16,-21,-33,-33,-50,-50,-50,-50,-80,-87,-256,-256,-256,-258,-7247,-11359,-10386,-7322,-7408,-11558,-29978,-29979,-29981,-29982,-29982,-29983,-29983,-29984,-29984,-29985]} 1. e4 {[%emt 1:31:00]} c5 {[%emt 0:00:06]} 2. Nf3 {[%emt 0:00:00]} d6 {[%emt 0:00:43]} 3. c3 {[%emt 0:00:00]} Nf6 {[%emt 0:00:06]} 4. h3 {[%emt 0:00:00]} Nc6 {[%emt 0:00:30]} 5. Bd3 {[%emt 0:00:00]} e5 {[%emt 0:00:30]} 6. Bc2 {[%emt 0:00:00]} g6 {[%emt 0:00:30]} 7. O-O {[%emt 0:00:00]} Bg7 {[%emt 0:06:55]} 8. d4 {[%emt 0:00:00]} cxd4 {[%emt 0:01:06]} 9. cxd4 {[%emt 0:00:00]} exd4 10. Nxd4 {[%emt 0:00:00]} O-O {[%emt 1:25:04]} 11. Nc3 {[%emt 0:00:00]} d5 {[%emt 0:00:30] B50: Sicilian: 2...d6, Miscellaneous.} 12. Be3 {[%emt 0:00:00]} (12. Nxc6 {keeps more tension.} bxc6 13. Bg5 Qa5 14. Bxf6 Bxf6 15. exd5 Bxc3 16. bxc3 cxd5 17. Bb3) 12... Nxd4 {[%emt 0:00:30]} (12... dxe4 {feels hotter.} 13. Nxc6 bxc6 14. Nxe4 Ba6) 13. Bxd4 {[%emt 0:06:00]} dxe4 {[%emt 0:00:00] The position is equal.} 14. Nxe4 {[%emt 0:00:00]} Nxe4 {[%emt 0:00:00]} 15. Bxg7 {[%emt 0:00:00]} Kxg7 {[%emt 0:00:00] [#]} 16. Qxd8 $146 {[%emt 0:00:00]} ({Predecessor:} 16. Bxe4 Qxd1 17. Rfxd1 Be6 18. b3 Rab8 19. Rac1 Rfe8 20. Rd4 Re7 21. f4 Rc8 22. Rxc8 Bxc8 {½-½ (30) Novikov,M (2511)-Bragin,A (2357) Pushchino 2013}) 16... Rxd8 {[%emt 0:00:00]} 17. Bxe4 {[%emt 0:00:00]} Rd4 {[%emt 0:00:00]} 18. Bf3 {[%emt 0:00:00]} Be6 {[%emt 0:00:00]} 19. Rfc1 {[%emt 0:03:00]} Rad8 {[%emt 0:03:30]} 20. Rc7 {[%emt 0:00:00]} R8d7 {[%emt 0:00:30]} 21. Rac1 {[%emt 0:00:00]} b6 {[%emt 0:00:00]} 22. a3 {[%emt 0:00:00]} a5 {[%emt 0:00:00]} 23. Rxd7 {[%emt 0:00:00]} Bxd7 {[%emt 0:00:00]} 24. Rd1 {[%emt 0:00:00]} Rxd1+ {[%emt 0:00:00]} 25. Bxd1 $11 {[%emt 0:00:00][%mdl 4096] Endgame KB-KB} g5 {[%emt 0:00:00]} 26. Kf1 {[%emt 0:00:00]} Kf6 {[%emt 0:00:00]} 27. Bb3 {[%emt 0:00:00]} Bb5+ {[%emt 0:00:00]} 28. Ke1 {[%emt 0:00:00]} h5 {[%emt 0:00:00][%cal Bh7h5,Bh5h4][%mdl 32]} 29. Kd2 {[%emt 0:00:00]} Bf1 {[%emt 0:00:00]} 30. Bd5 {[%emt 0:00:00]} h4 {[%emt 0:00:00]} 31. Ke1 {[%emt 0:01:43]} Ke5 {[%emt 0:00:00]} 32. Kxf1 $2 {[%emt 0:00:50] This move loses the game for White.} (32. Bf3 $17 {might work better.} Bc4 33. Kd2) 32... Kxd5 $17 {[%emt 0:00:00] KP-KP} 33. Ke2 {[%emt 0:00:30] [#]} Kc4 {[%emt 0:00:00] Threatens to win with ...Kb3.} 34. Kd2 $2 {[%emt 0:00:30]} (34. f4 gxf4 35. Kf3) 34... Kb3 $19 {[%emt 0:00:00]} 35. Kc1 {[%emt 0:00:30]} b5 {[%emt 0:00:00]} 36. Kb1 {[%emt 0:00:30]} f5 {[%emt 0:00:00][%cal Bf7f5,Bf5f4][%mdl 32]} 37. f3 {[%emt 0:00:00]} b4 {[%emt 0:00:00] Black mates.} 38. axb4 {[%emt 0:00:00]} axb4 {[%emt 0:00:00][%cal Ba5b4,Bb4b3][%mdl 32]} 39. Kc1 {[%emt 0:00:04] [#]} Ka2 $1 {[%emt 0:00:00]} 40. Kc2 {[%emt 0:03:04]} b3+ {[%emt 0:00:00]} 41. Kc3 {[%emt 0:30:47]} f4 {[%emt 0:29:43] Weighted Error Value: White=0.53/Black=0.01 (flawless)} 0-1

[Event "1st Sales Oliveira Masters 2022"]
[Site "Sales Oliveira"]
[Date "2022.06.11"]
[Round "6.4"]
[White "Born, Carlos Rodrigo"]
[Black "Diamant, Andre"]
[Result "0-1"]
[ECO "B61"]
[WhiteElo "2292"]
[BlackElo "2539"]
[Annotator "TA"]
[PlyCount "106"]
[EventDate "2022.05.30"]
[EventType "swiss"]
[EventCountry "BRA"]
[SourceTitle "playchess.com"]
[Source "ChessBase"]
[SourceQuality "1"]
[TimeControl "40/5400+30:1800+30"]

{[%evp 19,106,45,46,9,12,18,21,6,7,2,10,9,1,7,0,-16,-17,-22,-20,-20,-15,-24,-22,-22,-8,-22,-23,-76,-23,-38,-35,-56,-56,-63,-56,-62,-52,-65,-70,-74,-67,-100,-95,-96,-86,-125,-130,-117,-131,-127,-114,-114,-104,-135,-119,-135,-133,-136,-132,-129,-122,-134,-114,-136,-131,-229,-200,-604,-604,-596,-592,-556,-530,-560,-541,-847,-1215,-860,-666,-4953,-4634,-4174,-2613,-2241,-2052,-1477,-1236,-12611,-6122]} 1. e4 {[%emt 0:00:53]} c5 {[%emt 0:00:12]} 2. Nf3 {[%emt 0:00:03]} d6 {[%emt 0:01:17]} 3. d4 {[%emt 0:00:15]} cxd4 {[%emt 0:00:06]} 4. Nxd4 {[%emt 0:00:01]} Nf6 {[%emt 0:00:11]} 5. Nc3 {[%emt 0:00:01]} Nc6 {[%emt 0:00:05]} 6. Bg5 {[%emt 0:03:02]} Bd7 {[%emt 0:02:30]} 7. Qd2 {[%emt 0:03:15]} Rc8 {[%emt 0:01:12]} 8. O-O-O {[%emt 0:03:03]} Nxd4 {[%emt 0:01:33]} 9. Qxd4 {[%emt 0:00:05]} Qa5 {[%emt 0:00:05]} 10. Be3 {[%emt 0:06:30] 10.Bxf6 is the modern continuation.} a6 {[%emt 0:06:26]} 11. Qb6 {[%emt 0:01:48] B61: Sicilian: Richter-Rauzer: 6...Bd7 7 Qd2.} Qxb6 {[%emt 0:01:35]} 12. Bxb6 {[%emt 0:00:02]} g6 {[%emt 0:04:55]} 13. f3 {[%emt 0:00:39] The position is equal.} Bg7 {[%emt 0:02:03]} 14. Bd4 {[%emt 0:00:52]} O-O {[%emt 0:00:27][%cal Be8g8,Bg8g7,Bg7f6][%mdl 32]} 15. Bxf6 {[%emt 0:03:02]} Bxf6 {[%emt 0:00:16]} 16. Nd5 {[%emt 0:00:02]} Kg7 {[%emt 0:00:52]} 17. Nxf6 {[%emt 0:00:02]} Kxf6 {[%emt 0:00:11] [#]} 18. Kd2 $146 {[%emt 0:02:40]} ({Predecessor:} 18. Bd3 a5 19. Rhe1 Rc5 20. g3 Rfc8 21. Kd2 b5 22. a3 g5 23. Ke3 h5 24. c3 {0-1 (97) Titus,A (1685)-Chukavin,K (1905) Maribor 2012}) 18... Rc5 {[%emt 0:05:11]} 19. Bd3 {[%emt 0:00:06]} Rfc8 {[%emt 0:00:59]} 20. Rc1 {[%emt 0:00:11]} Be6 {[%emt 0:01:02]} 21. f4 {[%emt 0:01:04]} g5 {[%emt 0:03:28]} (21... Bxa2 22. b3 $14) 22. g3 {[%emt 0:03:34]} gxf4 {[%emt 0:12:20]} (22... Bxa2 23. b3 $16) 23. gxf4 {[%emt 0:02:50]} (23. Rhf1 $11 {remains equal.}) 23... Rh5 {[%emt 0:00:16] Black is more active.} (23... Bxa2 24. b3 $14) ({Better is} 23... Bc4 $1 $17) 24. Rcg1 {[%emt 0:00:07]} Rh4 {[%emt 0:00:29]} ({But not} 24... Bxa2 25. b3 $16) 25. Ke3 {[%emt 0:00:04]} Rc5 {[%emt 0:00:32]} ({Resist} 25... Bxa2 26. b3 $14) 26. Rg2 {[%emt 0:01:15]} Bd7 {[%emt 0:07:21]} ({Don't do} 26... Bxa2 27. b3 $14) 27. Rf2 {[%emt 0:01:49]} Bc6 {[%emt 0:09:13]} 28. Rg1 {[%emt 0:10:17]} Rch5 {[%emt 0:04:15]} 29. Rgg2 {[%emt 0:19:13]} e6 {[%emt 0:02:58]} 30. Be2 {[%emt 0:12:58] [#]} Rh6 {[%emt 0:04:27]} 31. Bg4 {[%emt 0:03:54]} Rg6 {[%emt 0:05:20]} 32. h3 {[%emt 0:00:02]} h5 {[%emt 0:03:29]} 33. f5 {[%emt 0:01:35]} exf5 {[%emt 0:00:18]} 34. Bxf5 {[%emt 0:04:23]} Rxg2 {[%emt 0:01:36]} 35. Rxg2 $17 {[%emt 0:00:01][%mdl 4096] Endgame KRB-KRB} Ke5 {[%emt 0:01:53][%cal Rc6e4]} 36. Rg5 {[%emt 0:00:04]} f6 {[%emt 0:01:11]} 37. Rg7 {[%emt 0:01:29][%cal Rg7e7]} Bxe4 {[%emt 0:00:27]} 38. Bxe4 {[%emt 0:00:18]} Rxe4+ {[%emt 0:00:10] KR-KR} 39. Kf3 {[%emt 0:00:08] Hoping for Re7+.} Rf4+ {[%emt 0:00:32]} 40. Kg2 {[%emt 0:00:53] [#]} b5 $1 {[%emt 0:01:39][%cal Bb7b5,Bb5b4][%mdl 32]} 41. c3 {[%emt 0:32:03]} b4 {[%emt 0:30:51]} 42. Ra7 {[%emt 0:02:37]} (42. Re7+ $17 Kf5 43. Rh7) 42... bxc3 $19 {[%emt 0:00:44]} 43. Rxa6 $2 {[%emt 0:00:02]} (43. bxc3 Ra4 44. Re7+ Kf5 45. Re2) 43... cxb2 {[%emt 0:00:55] Black is clearly winning.} 44. Rb6 {[%emt 0:00:01]} d5 {[%emt 0:01:33]} 45. Rxb2 {[%emt 0:00:10]} h4 {[%emt 0:02:33]} 46. a3 {[%emt 0:03:02]} f5 {[%emt 0:01:09]} 47. Ra2 {[%emt 0:00:54]} Ra4 {[%emt 0:01:35]} 48. Re2+ {[%emt 0:00:58]} Kf6 {[%emt 0:01:54]} 49. Re8 {[%emt 0:02:31]} Rxa3 {[%emt 0:00:24]} 50. Rf8+ {[%emt 0:00:52]} Kg5 {[%emt 0:00:26]} 51. Rd8 {[%emt 0:00:12]} Rd3 {[%emt 0:00:14] And now ...d4 would win.} 52. Kf2 {[%emt 0:00:17]} Kf4 {[%emt 0:01:09]} 53. Rh8 {[%emt 0:00:01]} Rxh3 {[%emt 0:00:36] Weighted Error Value: White=0.70/Black=0.19 (very precise)} 0-1

[Event "1st Sales Oliveira Masters 2022"]
[Site "Sales Oliveira"]
[Date "2022.06.11"]
[Round "6.5"]
[White "Lima, Darcy"]
[Black "Rodi, Luis Ernesto"]
[Result "1-0"]
[ECO "A29"]
[WhiteElo "2488"]
[BlackElo "2351"]
[Annotator "TA"]
[PlyCount "109"]
[EventDate "2022.05.30"]
[EventType "swiss"]
[EventCountry "BRA"]
[SourceTitle "playchess.com"]
[Source "ChessBase"]
[SourceQuality "1"]
[TimeControl "40/5400+30:1800+30"]

{[%evp 21,109,18,10,12,14,0,20,7,0,0,111,77,89,106,103,106,300,300,286,277,294,286,283,235,231,120,187,181,222,226,237,233,214,209,225,209,271,254,303,289,320,253,273,264,269,283,300,302,447,337,324,313,327,329,337,331,342,340,343,343,343,338,329,322,328,280,312,315,360,285,537,510,510,539,542,534,534,518,556,538,586,592,958,925,939,933,862,862,797,750]} 1. c4 {[%emt 0:01:40]} e5 {[%emt 0:00:13]} 2. Nc3 {[%emt 0:00:07]} Nf6 {[%emt 0:00:08]} 3. Nf3 {[%emt 0:00:28][%cal Bg1f3,Bf3e1,Be1c2,Bc2e3][%mdl 32]} Nc6 {[%emt 0:00:06]} 4. g3 {[%emt 0:01:07]} Bb4 {[%emt 0:00:32]} 5. Bg2 {[%emt 0:00:56]} O-O {[%emt 0:00:11]} 6. O-O {[%emt 0:00:52]} e4 {[%emt 0:00:16]} 7. Ne1 {[%emt 0:03:16]} Bxc3 {[%emt 0:07:05]} 8. dxc3 {[%emt 0:00:18]} d6 {[%emt 0:00:29]} 9. Nc2 {[%emt 0:13:31]} Re8 {[%emt 0:04:22]} 10. Bg5 {[%emt 0:10:22]} h6 {[%emt 0:01:21]} 11. Bxf6 {[%emt 0:00:03]} Qxf6 {[%emt 0:00:07]} 12. Ne3 {[%emt 0:00:03] A29: English Opening: Four Knights Variation with 4 g3.} Bf5 {[%emt 0:03:24]} 13. f4 {[%emt 0:05:49]} h5 {[%emt 0:04:06]} 14. Qc2 {[%emt 0:09:58] The position is equal.} Qe6 {[%emt 0:03:47] [#]} 15. Rad1 $146 {[%emt 0:01:23][%cal Ba1d1,Bd1d5,Bd5g5][%mdl 32]} ({Predecessor:} 15. h3 Ne7 16. Kh2 d5 17. b3 dxc4 18. bxc4 Qb6 19. Qc1 Qg6 20. Qc2 Qb6 21. Qc1 {1-0 (40) Nippula,T (2199)-Kokkila,T (2293) Kajaani 1999}) 15... Bh3 {[%emt 0:11:45]} (15... Ne7 $11) 16. Rd5 {[%emt 0:12:09]} Bxg2 {[%emt 0:03:21]} 17. Kxg2 {[%emt 0:00:02]} Qh6 {[%emt 0:04:14]} 18. Rg5 {[%emt 0:01:40] Black must now prevent Nf5. White is more active.} g6 {[%emt 0:02:25]} (18... Ne7 $16 {keeps fighting.}) 19. Nd5 $18 {[%emt 0:03:18]} Rac8 {[%emt 0:05:46]} 20. Nf6+ {[%emt 0:00:31]} Kf8 {[%emt 0:00:07]} 21. Nxe8 {[%emt 0:01:21]} Rxe8 {[%emt 0:00:05]} 22. Rb5 {[%emt 0:03:46]} b6 {[%emt 0:00:21] [#]} 23. Kh1 {[%emt 0:03:40]} ({White must play} 23. Qa4 $1 $18) 23... a6 {[%emt 0:02:12]} (23... Ne7 $16 {is a better defense.}) 24. Rd5 {[%emt 0:05:18]} h4 {[%emt 0:09:12] [#]} 25. g4 {[%emt 0:00:49]} h3 {[%emt 0:01:56]} 26. e3 {[%emt 0:02:08]} Qh4 {[%emt 0:01:10]} 27. Qe2 {[%emt 0:01:44]} Kg7 {[%emt 0:03:05]} 28. Rg1 {[%emt 0:01:09][%cal Bf1g1,Bg1g3,Bg3h3][%mdl 32]} Kf8 {[%emt 0:00:41]} 29. Rg3 {[%emt 0:00:34]} Ke7 {[%emt 0:01:29]} 30. Qf1 {[%emt 0:01:21]} Kd8 {[%emt 0:03:55]} 31. Qxh3 {[%emt 0:00:37]} Qf6 {[%emt 0:00:05]} 32. Qf1 {[%emt 0:05:41]} Rh8 {[%emt 0:02:17]} 33. Rh3 {[%emt 0:01:23]} Rh4 {[%emt 0:01:03]} 34. Qg2 {[%emt 0:00:55]} Qh8 {[%emt 0:00:59]} (34... a5 $142 35. Qg3 Rxh3 36. Qxh3 a4) 35. Rxh4 {[%emt 0:00:25]} Qxh4 {[%emt 0:00:06][%mdl 4096] Endgame KQR-KQN} 36. Qg3 {[%emt 0:01:06] Inhibits Qe1+.} ({Not} 36. Qxe4 Qe1+ 37. Kg2 Ne7 $16) 36... Qh8 {[%emt 0:00:15]} 37. Kg2 {[%emt 0:00:25]} Ne7 {[%emt 0:00:14]} 38. Rd2 {[%emt 0:02:42]} f5 {[%emt 0:00:09]} 39. g5 {[%emt 0:01:13]} Qg8 {[%emt 0:00:07]} 40. b3 {[%emt 0:00:09][%cal Bb2b3,Bb3b4][%mdl 32]} Qh8 {[%emt 0:00:05]} 41. Qe1 {[%emt 0:30:35]} Kc8 {[%emt 0:30:30]} 42. Rf2 {[%emt 0:00:29]} Nc6 {[%emt 0:00:58]} 43. Kg1 {[%emt 0:00:19]} Nd8 {[%emt 0:00:14]} 44. Rg2 {[%emt 0:00:46]} Nb7 {[%emt 0:00:07]} 45. b4 {[%emt 0:00:46] Inhibits Nc5.} Qg8 $2 {[%emt 0:00:43]} (45... Qh3 46. Rd2 a5) 46. h4 {[%emt 0:00:48] White is clearly winning.} Qh8 {[%emt 0:01:54]} 47. Rh2 {[%emt 0:00:02]} Nd8 {[%emt 0:00:20]} 48. h5 {[%emt 0:00:57]} gxh5 {[%emt 0:00:05]} 49. Qd2 {[%emt 0:02:30]} h4 {[%emt 0:00:08]} 50. Qd5 {[%emt 0:00:21] Inhibits Nc6.} Qxc3 {[%emt 0:00:20] ...Qe1+ is the strong threat.} 51. Re2 {[%emt 0:00:54] Prevents Qe1+.} Qc1+ {[%emt 0:01:23]} 52. Kh2 {[%emt 0:00:09]} Kb8 {[%emt 0:01:43]} 53. Qxf5 {[%emt 0:00:10]} Qxc4 {[%emt 0:00:18]} 54. Rg2 {[%emt 0:00:20]} h3 {[%emt 0:02:34]} 55. Qxh3 {[%emt 0:00:24] Weighted Error Value: White=0.14 (very precise) /Black=0.37} 1-0